bitfinex/quotes_SOLUSD_20241105
["timestamp","ask_amount","ask_price","bid_price","bid_amount"]
[1730833242509,11.01033939,167.28,167.22,11.01033939]
[1730833242908,16.98863939,167.27,167.21,191.94173939]
[1730833243118,11.01033939,167.26,167.21,160.0]
[1730833243608,11.01033939,167.26,167.21,171.01033939]
[1730833243811,16.98863939,167.27,167.21,171.01033939]
[1730833244017,16.98863939,167.27,167.21,176.99053939]
[1730833244323,16.98863939,167.27,167.22,11.01033939]
[1730833244528,5.9783,167.27,167.22,11.01033939]
[1730833244902,5.9783,167.27,167.23,11.01033939]
[1730833245099,5.9783,167.27,167.24,11.01033939]
[1730833245303,5.9783,167.27,167.23,11.01033939]
[1730833245628,5.9783,167.27,167.22,11.01033939]
[1730833245832,11.01033939,167.26,167.21,165.9804]
[1730833246809,11.01033939,167.25,167.21,160.0]
[1730833247006,5.979,167.25,167.21,160.0]
[1730833247528,16.98933939,167.25,167.21,160.0]
[1730833247709,11.01033939,167.24,167.21,160.0]
[1730833247906,11.01033939,167.24,167.2,174.9516]
[1730833248332,11.01033939,167.23,167.18,181.2617]
[1730833249727,11.01033939,167.23,167.18,192.27203939]
[1730833250029,16.98973939,167.24,167.18,192.27203939]
[1730833250333,11.01033939,167.21,167.18,21.2617]
[1730833250532,5.9794,167.24,167.15,5.9826]
[1730833250533,11.01033939,167.2,167.15,11.01033939]
[1730833251241,11.01033939,167.22,167.16,11.01033939]
[1730833251419,16.98973939,167.24,167.18,11.01033939]
[1730833251908,11.01033939,167.23,167.18,11.01033939]
[1730833252949,49.39599437,167.27,167.14,204.1436]
[1730833252950,16.99043939,167.22,167.17,11.01033939]
[1730833253136,16.99043939,167.22,167.16,11.01033939]
[1730833253137,11.01033939,167.21,167.16,11.01033939]
[1730833253343,16.99043939,167.22,167.17,11.01033939]
[1730833254227,5.9801,167.22,167.17,11.01033939]
[1730833256065,5.9819,167.17,167.1,182.1567]
[1730833256264,11.01033939,167.15,167.1,182.1567]
[1730833256454,11.01033939,167.16,167.1,199.15133939]
[1730833258149,108.39035193,167.2,167.1,199.15133939]
[1730833258150,5.9812,167.19,167.1,199.15133939]
[1730833258331,11.01033939,167.16,167.1,199.15133939]
[1730833259154,11.01033939,167.14,167.1,182.1567]
[1730833259453,11.01033939,167.14,167.1,22.1567]
[1730833260448,11.01033939,167.13,167.1,16.0447]
[1730833261159,16.99383939,167.13,167.1,16.0447]
[1730833262335,11.01033939,167.12,167.1,16.0447]
[1730833262536,11.01033939,167.13,167.1,16.0447]
[1730833263443,16.99373939,167.13,167.1,16.0447]
[1730833264155,11.01033939,167.14,167.1,16.0447]
[1730833264454,11.01033939,167.13,167.1,16.0447]
[1730833265444,16.99333939,167.14,167.1,16.0447]
[1730833267160,11.01033939,167.13,167.1,16.0447]
[1730833268256,11.01033939,167.14,167.1,16.0447]
[1730833268839,11.01033939,167.16,167.1,27.05503939]
[1730833269047,16.0348,167.23,167.13,11.01033939]
[1730833269048,11.01033939,167.18,167.13,11.01033939]
[1730833269560,11.01033939,167.19,167.13,11.01033939]
[1730833269745,11.01033939,167.19,167.14,11.01033939]
[1730833269941,11.01033939,167.22,167.16,11.01033939]
[1730833270141,5.979,167.25,167.18,15.9506]
[1730833270349,11.01033939,167.24,167.18,26.96093939]
[1730833271354,16.98993939,167.24,167.18,32.94233939]
[1730833271537,11.01033939,167.23,167.18,21.932]
[1730833271737,11.01033939,167.22,167.18,21.932]
[1730833272442,11.01033939,167.23,167.18,21.932]
[1730833272756,11.01033939,167.23,167.18,32.94233939]
[1730833274557,11.01033939,167.24,167.19,11.01033939]
[1730833274939,11.01033939,167.24,167.18,47.89623939]
[1730833275140,11.01033939,167.23,167.18,30.9045]
[1730833275462,11.01033939,167.21,167.18,30.9045]
[1730833276133,11.01033939,167.19,167.15,5.9826]
[1730833276641,11.01033939,167.18,167.14,31.4756]
[1730833276854,11.01033939,167.2,167.15,11.01033939]
[1730833277556,17.19378429,167.17,167.14,16.5187]
[1730833278539,17.19378429,167.16,167.14,16.5187]
[1730833278955,17.19378429,167.17,167.14,16.5187]
[1730833279155,23.17558429,167.18,167.14,16.5187]
[1730833280061,17.19378429,167.17,167.14,16.5187]
[1730833280240,23.17568429,167.17,167.14,16.5187]
[1730833281559,17.19378429,167.19,167.14,16.5187]
[1730833282055,17.19378429,167.18,167.14,16.5187]
[1730833282253,17.19378429,167.16,167.14,16.5187]
[1730833282633,17.19378429,167.17,167.14,16.5187]
[1730833282836,17.19378429,167.18,167.14,16.5187]
[1730833283963,5.98,167.23,167.17,17.19378429]
[1730833284286,5.98,167.23,167.18,17.19378429]
[1730833284287,23.17378429,167.23,167.18,17.19378429]
[1730833284455,23.17378429,167.23,167.17,17.19378429]
[1730833285346,17.19378429,167.2,167.15,198.13298429]
[1730833285554,17.19378429,167.2,167.15,174.9566]
[1730833285755,17.19378429,167.19,167.15,174.9566]
[1730833285956,17.19378429,167.19,167.15,14.9566]
[1730833286169,17.19378429,167.19,167.15,20.9392]
[1730833286552,17.19378429,167.21,167.15,38.13298429]
[1730833286765,17.19378429,167.23,167.18,17.19378429]
[1730833287145,23.17358429,167.23,167.18,17.19378429]
[1730833287641,23.17358429,167.23,167.18,23.17498429]
[1730833289476,17.19378429,167.24,167.18,38.12888429]
[1730833289660,17.19378429,167.23,167.18,20.9351]
[1730833290582,17.19378429,167.23,167.18,38.12888429]
[1730833290791,23.17358429,167.23,167.18,20.9351]
[1730833292489,23.17358429,167.23,167.18,38.12888429]
[1730833292663,17.19378429,167.24,167.19,17.19378429]
[1730833293489,17.19378429,167.24,167.18,38.12888429]
[1730833293688,17.19378429,167.23,167.18,20.9351]
[1730833297260,10.99974082,167.23,167.18,31.93484082]
[1730833298507,10.99974082,167.22,167.18,14.9539]
[1730833298696,16.97954082,167.23,167.18,31.93514082]
[1730833298876,16.97954082,167.23,167.18,191.93514082]
[1730833301083,5.9783,167.27,167.19,10.99974082]
[1730833301391,10.99974082,167.25,167.19,170.99974082]
[1730833302401,10.99974082,167.24,167.2,5.9808]
[1730833304682,10.99974082,167.24,167.2,165.9808]
[1730833310400,10.99974082,167.25,167.2,165.9808]
[1730833310602,5.9776,167.29,167.21,27.42804082]
[1730833310782,10.99974082,167.27,167.22,10.99974082]
[1730833311380,10.99974082,167.28,167.22,10.99974082]
[1730833311602,16.97734082,167.29,167.23,10.99974082]
[1730833312480,16.97734082,167.29,167.24,5.9794]
[1730833313083,10.99974082,167.28,167.24,5.9794]
[1730833313287,10.99974082,167.27,167.24,5.9794]
[1730833313501,10.99974082,167.28,167.24,5.9794]
[1730833316682,10.99974082,167.28,167.24,20.9279]
[1730833317295,10.99974082,167.27,167.24,20.9279]
[1730833317689,10.99974082,167.27,167.24,14.9485]
[1730833319206,10.99974082,167.28,167.24,14.9485]
[1730833320680,10.99974082,167.27,167.22,5.98]
[1730833321102,5.9777,167.29,167.23,10.99974082]
[1730833321405,10.99974082,167.28,167.22,31.93004082]
[1730833321589,10.99974082,167.27,167.22,20.9303]
[1730833322104,10.99974082,167.27,167.22,31.93004082]
[1730833322510,16.97814082,167.27,167.22,31.93004082]
[1730833322690,16.97814082,167.27,167.22,20.9303]
[1730833322890,10.99974082,167.26,167.22,20.9303]
[1730833324113,10.99974082,167.28,167.22,31.93004082]
[1730833324410,10.99974082,167.29,167.23,10.99974082]
[1730833326315,10.99974082,167.28,167.23,20.9291]
[1730833326514,10.99974082,167.27,167.23,20.9291]
[1730833327223,10.99974082,167.26,167.23,14.9494]
[1730833327794,10.99974082,167.27,167.23,14.9494]
[1730833327988,10.99974082,167.26,167.22,20.0]
[1730833328300,10.99974082,167.24,167.21,16.4283]
[1730833328491,10.99974082,167.24,167.21,176.4283]
[1730833329217,10.99974082,167.25,167.21,176.4283]
[1730833329415,10.99974082,167.25,167.21,182.4087]
[1730833329617,10.99974082,167.26,167.21,208.35964082]
[1730833329913,5.9776,167.29,167.23,10.99974082]
[1730833330115,10.99974082,167.28,167.23,160.0]
[1730833330418,10.99974082,167.27,167.23,160.0]
[1730833330586,10.99974082,167.27,167.23,165.9796]
[1730833331719,10.99974082,167.26,167.23,165.9796]
[1730833332213,10.99974082,167.27,167.23,165.9796]
[1730833332929,5.9772,167.3,167.23,160.0]
[1730833332930,10.99974082,167.25,167.23,160.0]
[1730833333218,70.31639437,167.3,167.21,197.36]
[1730833333520,10.99974082,167.25,167.21,197.36]
[1730833335222,10.99974082,167.24,167.21,160.0]
[1730833335392,10.99974082,167.23,167.21,160.0]
[1730833336429,10.99974082,167.22,167.18,187.5699]
[1730833336614,10.99974082,167.21,167.18,174.9537]
[1730833336807,10.99974082,167.21,167.18,14.9537]
[1730833337127,10.99974082,167.22,167.18,20.9352]
[1730833337329,10.99974082,167.23,167.18,20.9352]
[1730833337922,10.99974082,167.23,167.18,31.93494082]
[1730833338520,16.97964082,167.23,167.18,31.93494082]
[1730833339421,5.9783,167.27,167.19,10.99974082]
[1730833339605,10.99974082,167.25,167.19,170.99974082]
[1730833339926,10.99974082,167.25,167.2,10.99974082]
[1730833340723,10.99974082,167.24,167.2,5.9808]
[1730833342330,10.99974082,167.23,167.19,160.0]
[1730833342528,10.99974082,167.22,167.19,160.0]
[1730833343234,10.99974082,167.22,167.19,165.981]
[1730833344325,10.99974082,167.21,167.19,160.0]
[1730833344624,10.99974082,167.2,167.19,160.0]
[1730833346114,10.99974082,167.21,167.17,5.9819]
[1730833346810,10.99974082,167.2,167.17,5.9819]
[1730833349231,10.99974082,167.19,167.15,174.9563]
[1730833349453,10.99974082,167.18,167.15,14.9563]
[1730833349729,5.9809,167.2,167.15,14.9563]
[1730833349730,16.98064082,167.2,167.15,14.9563]
[1730833350033,10.99974082,167.27,167.19,30.99974082]
[1730833350338,10.99974082,167.27,167.21,10.99974082]
[1730833350909,10.99974082,167.27,167.21,16.98004082]
[1730833351433,10.99974082,167.27,167.21,31.93124082]
[1730833351434,3.57871275,167.26,167.21,31.93124082]
[1730833351632,3.57871275,167.25,167.21,31.93124082]
[1730833351937,10.99974082,167.27,167.21,31.93124082]
[1730833351938,3.57871275,167.24,167.21,31.93124082]
[1730833352232,10.99974082,167.27,167.21,31.93124082]
[1730833352233,3.57871275,167.23,167.21,31.93124082]
[1730833352432,10.99974082,167.27,167.21,31.93124082]
[1730833352636,14.57867884,167.26,167.21,14.9512]
[1730833352929,3.57893802,167.25,167.21,14.9512]
[1730833353133,3.57893802,167.25,167.21,25.95094082]
[1730833353730,3.57893802,167.24,167.21,31.93144082]
[1730833353913,3.57893802,167.23,167.22,10.99974082]
[1730833354932,49.70360747,167.34,167.22,75.75932482]
[1730833355231,10.99974082,167.33,167.28,10.99974082]
[1730833356721,49.70360747,167.34,167.29,10.99974082]
[1730833356722,0.3076131,167.34,167.29,10.99974082]
[1730833356921,0.3076131,167.34,167.3,10.99974082]
[1730833357844,0.3076131,167.34,167.3,16.97694082]
[1730833359436,11.30735392,167.34,167.28,14.9441]
[1730833359740,17.28315392,167.34,167.29,10.99974082]
[1730833360242,11.30735392,167.34,167.29,10.99974082]
[1730833360841,11.30735392,167.34,167.28,14.9441]
[1730833360842,17.28325392,167.34,167.28,25.94384082]
[1730833361139,17.28325392,167.34,167.29,10.99974082]
[1730833361645,17.28325392,167.34,167.29,16.97714082]
[1730833361814,17.28325392,167.34,167.29,5.9774]
[1730833362014,10.99974082,167.33,167.29,5.9774]
[1730833362914,0.3076131,167.34,167.29,31.92124082]
[1730833363115,11.30735392,167.34,167.29,20.9215]
[1730833363634,10.99974082,167.33,167.29,20.9215]
[1730833364234,11.30735392,167.34,167.29,20.9215]
[1730833364527,17.28345392,167.34,167.29,20.9215]
[1730833364840,17.28345392,167.34,167.29,31.92124082]
[1730833364841,0.3076131,167.34,167.29,31.92124082]
[1730833365036,0.3076131,167.34,167.29,20.9215]
[1730833365238,0.3076131,167.34,167.26,6.1405]
[1730833365239,5.9762,167.33,167.26,6.1405]
[1730833365411,10.99974082,167.32,167.27,10.99974082]
[1730833365733,10.99974082,167.33,167.27,10.99974082]
[1730833366117,10.99974082,167.32,167.27,10.99974082]
[1730833366342,16.97654082,167.32,167.26,27.0659]
[1730833366638,16.97654082,167.32,167.27,10.99974082]
[1730833367422,10.99974082,167.32,167.27,10.99974082]
[1730833368442,10.99974082,167.32,167.28,5.978]
[1730833369133,16.97594082,167.33,167.28,5.978]
[1730833369842,10.99974082,167.32,167.28,5.978]
[1730833370230,10.99974082,167.3,167.26,20.925]
[1730833371131,5.9762,167.33,167.26,20.925]
[1730833371132,10.99974082,167.29,167.26,20.925]
[1730833371341,10.99974082,167.29,167.26,14.9467]
[1730833371725,10.99974082,167.3,167.26,14.9467]
[1730833373027,10.99974082,167.29,167.26,14.9467]
[1730833373838,10.99974082,167.28,167.26,14.9467]
[1730833374042,23.0740131,167.34,167.26,10.99974082]
[1730833374043,72.47000747,167.34,167.26,10.99974082]
[1730833374338,72.47000747,167.34,167.29,10.99974082]
[1730833374339,0.3076131,167.34,167.29,10.99974082]
[1730833375330,0.3076131,167.34,167.3,10.99974082]
[1730833375947,0.3076131,167.34,167.3,16.97664082]
[1730833377554,0.3076131,167.34,167.3,31.91984082]
[1730833380061,11.30735392,167.34,167.3,20.9201]
[1730833380552,0.3076131,167.34,167.3,31.91984082]
[1730833381058,0.3076131,167.34,167.3,20.9201]
[1730833383040,10.99974082,167.32,167.28,27.5612]
[1730833383239,17.28335392,167.34,167.28,32.25734082]
[1730833383665,11.30735392,167.34,167.29,10.99974082]
[1730833385249,11.30735392,167.34,167.3,5.9772]
[1730833385948,10.99974082,167.33,167.3,5.9772]
[1730833386958,0.3076131,167.34,167.29,31.92144082]
[1730833388367,0.3076131,167.34,167.33,10.99974082]
[1730833389237,0.3076131,167.34,167.33,16.97594082]
[1730833391667,0.3076131,167.34,167.33,32.21114082]
[1730833391975,17.28045392,167.42,167.33,32.21114082]
[1730833391976,0.3076131,167.42,167.34,0.1]
[1730833392143,0.3076131,167.42,167.41,10.99974082]
[1730833392348,0.3076131,167.42,167.36,43.99896328]
[1730833392349,0.3076131,167.42,167.4,10.99974082]
[1730833392647,0.3076131,167.42,167.41,26.96134082]
[1730833392856,0.3076131,167.42,167.41,46.96134082]
[1730833393765,0.3076131,167.42,167.41,52.93464082]
[1730833394064,0.3076131,167.42,167.41,76.71152482]
[1730833394268,0.3076131,167.5,167.42,43.776884]
[1730833394441,0.3076131,167.5,167.47,10.99974082]
[1730833394646,0.3076131,167.5,167.46,10.99974082]
[1730833395268,0.3076131,167.5,167.47,10.99974082]
[1730833396568,0.3076131,167.5,167.48,5.9708]
[1730833398842,0.3076131,167.5,167.47,20.8989]
[1730833399565,0.3076131,167.5,167.47,10.99974082]
[1730833400145,0.3076131,167.5,167.48,10.99974082]
[1730833400445,0.3076131,167.5,167.49,10.99974082]
[1730833401540,0.3076131,167.5,167.48,10.99974082]
[1730833401946,0.3076131,167.5,167.48,14.9268]
[1730833402558,0.3076131,167.5,167.48,20.8976]
[1730833402766,0.3076131,167.5,167.48,31.89734082]
[1730833404495,0.3076131,167.5,167.48,20.8976]
[1730833409085,0.3076131,167.5,167.48,31.89734082]
[1730833409468,0.3076131,167.5,167.48,20.8976]
[1730833409668,0.3076131,167.5,167.48,31.89734082]
[1730833413668,0.3076131,167.5,167.49,10.99974082]
[1730833415362,0.3076131,167.5,167.49,16.97024082]
[1730833415758,0.3076131,167.5,167.49,60.84712482]
[1730833415959,0.3076131,167.59,167.5,59.306284]
[1730833416189,0.3076131,167.59,167.56,10.99974082]
[1730833417285,0.3076131,167.59,167.57,16.96704082]
[1730833418284,0.3076131,167.59,167.57,5.9673]
[1730833419282,0.3076131,167.59,167.56,14.9193]
[1730833419665,10.99974082,167.58,167.52,191.89154082]
[1730833419868,10.99974082,167.58,167.53,5.9689]
[1730833420590,10.99974082,167.57,167.52,20.8921]
[1730833420788,10.99974082,167.57,167.52,31.89184082]
[1730833421088,10.99974082,167.58,167.53,10.99974082]
[1730833421273,10.99974082,167.58,167.52,31.89184082]
[1730833421588,16.96704082,167.58,167.53,10.99974082]
[1730833421801,16.96704082,167.58,167.52,31.89184082]
[1730833421966,10.99974082,167.57,167.52,31.89184082]
[1730833422299,16.96704082,167.58,167.53,10.99974082]
[1730833422592,16.96704082,167.58,167.52,31.89184082]
[1730833422768,10.99974082,167.56,167.52,14.9227]
[1730833423892,10.99974082,167.53,167.49,14.9261]
[1730833424771,10.99974082,167.53,167.48,16.97054082]
[1730833424772,10.99974082,167.5,167.46,22.2075]
[1730833424968,10.99974082,167.49,167.45,20.9008]
[1730833425173,10.99974082,167.48,167.45,14.9289]
[1730833425779,10.99974082,167.47,167.42,33.27914082]
[1730833426192,5.9701,167.5,167.42,48.21164082]
[1730833426400,10.99974082,167.48,167.42,48.21164082]
[1730833426605,10.99974082,167.48,167.43,10.99974082]
[1730833427494,10.99974082,167.48,167.44,5.9722]
[1730833428500,10.99974082,167.48,167.43,10.99974082]
[1730833428703,16.97034082,167.49,167.44,10.99974082]
[1730833428884,10.99974082,167.48,167.43,31.90394082]
[1730833429607,16.97034082,167.49,167.43,31.90394082]
[1730833430506,10.99974082,167.49,167.43,31.90394082]
[1730833431026,5.9705,167.49,167.43,31.90394082]
[1730833431179,10.99974082,167.48,167.43,31.90394082]
[1730833431373,10.99974082,167.5,167.44,10.99974082]
[1730833431594,16.96994082,167.5,167.44,10.99974082]
[1730833432106,10.99974082,167.49,167.44,10.99974082]
[1730833432295,10.99974082,167.49,167.44,16.97184082]
[1730833432489,16.96994082,167.5,167.44,16.97184082]
[1730833433285,49.39599437,167.55,167.47,10.99974082]
[1730833433502,16.96864082,167.54,167.49,10.99974082]
[1730833434586,10.99974082,167.53,167.48,16.97034082]
[1730833434910,10.99974082,167.54,167.49,10.99974082]
[1730833435087,10.99974082,167.55,167.49,10.99974082]
[1730833435286,10.99974082,167.55,167.5,10.99974082]
[1730833436401,10.99974082,167.55,167.5,16.96964082]
[1730833436706,5.9681,167.56,167.5,16.96964082]
[1730833437008,16.96784082,167.56,167.5,31.89494082]
[1730833439019,10.99974082,167.56,167.5,31.89494082]
[1730833439180,10.99974082,167.54,167.5,14.9253]
[1730833440005,10.99974082,167.53,167.5,14.9253]
[1730833440184,10.99974082,167.54,167.5,14.9253]
[1730833440500,16.96824082,167.55,167.5,14.9253]
[1730833441288,5.9674,167.58,167.52,10.99974082]
[1730833441493,10.99974082,167.58,167.52,10.99974082]
[1730833441703,17.27435392,167.59,167.53,10.99974082]
[1730833441925,0.3076131,167.59,167.55,10.99974082]
[1730833442502,0.3076131,167.59,167.55,16.96784082]
[1730833443523,0.3076131,167.59,167.55,17.11197672]
[1730833444320,17.41958982,167.59,167.54,14.9214]
[1730833444614,17.11197672,167.58,167.54,14.9214]
[1730833444826,23.38648982,167.59,167.54,14.9214]
[1730833445523,23.38648982,167.59,167.54,20.8901]
[1730833448413,6.2745131,167.59,167.54,32.03337672]
[1730833450196,0.3076131,167.59,167.56,17.11197672]
[1730833450400,0.3076131,167.59,167.55,17.11197672]
[1730833451116,0.3076131,167.59,167.54,32.03337672]
[1730833451645,17.11197672,167.58,167.54,14.9214]
[1730833451804,23.38648982,167.59,167.54,14.9214]
[1730833452527,23.38648982,167.59,167.54,20.8901]
[1730833452825,23.38648982,167.59,167.54,38.00207672]
[1730833453216,17.41958982,167.59,167.54,38.00207672]
[1730833453529,0.3076131,167.59,167.54,38.00207672]
[1730833453827,0.3076131,167.59,167.55,17.11197672]
[1730833454207,0.3076131,167.59,167.54,32.03337672]
[1730833455613,0.3076131,167.59,167.54,38.00207672]
[1730833457129,0.3076131,167.59,167.51,6.2015]
[1730833457130,23.38668982,167.59,167.53,17.11197672]
[1730833457311,17.11197672,167.57,167.52,17.11197672]
[1730833458125,17.11197672,167.58,167.52,17.11197672]
[1730833458347,17.11197672,167.58,167.53,5.969]
[1730833460427,17.11197672,167.58,167.52,17.11197672]
[1730833460428,17.11197672,167.55,167.51,14.9244]
[1730833460624,17.11197672,167.54,167.51,14.9244]
[1730833460822,17.11197672,167.54,167.49,160.0]
[1730833461008,17.11197672,167.53,167.49,160.0]
[1730833461211,17.11197672,167.54,167.48,53.42517672]
[1730833461423,17.11197672,167.54,167.49,17.11197672]
[1730833462012,17.11197672,167.54,167.49,23.08227672]
[1730833462637,23.08077672,167.54,167.49,23.08227672]
[1730833462816,17.11197672,167.54,167.49,23.08227672]
[1730833463017,23.08067672,167.54,167.49,17.11197672]
[1730833463839,17.11197672,167.53,167.48,30.3427]
[1730833464026,23.08107672,167.53,167.48,30.3427]
[1730833464210,23.08107672,167.53,167.48,14.9269]
[1730833464407,17.11197672,167.52,167.48,14.9269]
[1730833464621,17.11197672,167.52,167.46,23.08317672]
[1730833464830,17.11197672,167.51,167.46,23.08317672]
[1730833465335,10.96380229,167.51,167.46,16.93500229]
[1730833465533,10.96380229,167.51,167.46,5.9712]
[1730833465723,10.96380229,167.49,167.44,27.70394879]
[1730833466123,10.96380229,167.49,167.44,33.67604879]
[1730833466529,10.96380229,167.48,167.44,16.7401465]
[1730833466834,16.93350229,167.51,167.45,10.96380229]
[1730833467046,5.9697,167.51,167.46,10.96380229]
[1730833467419,16.93350229,167.51,167.46,10.96380229]
[1730833468821,16.93350229,167.51,167.45,16.93540229]
[1730833469637,16.93350229,167.51,167.46,10.96380229]
[1730833470047,5.9694,167.53,167.47,31.86300229]
[1730833470253,16.93320229,167.53,167.47,31.86300229]
[1730833471840,10.96380229,167.53,167.47,31.86300229]
[1730833472029,16.93240229,167.55,167.49,10.96380229]
[1730833472436,10.96380229,167.54,167.49,10.96380229]
[1730833474147,16.93180229,167.56,167.5,10.96380229]
[1730833474455,16.93180229,167.56,167.49,20.8966]
[1730833474456,5.9678,167.57,167.51,10.96380229]
[1730833474646,16.93160229,167.57,167.52,10.96380229]
[1730833474941,5.9678,167.57,167.52,10.96380229]
[1730833475146,0.3076131,167.59,167.54,10.96380229]
[1730833475519,0.3076131,167.59,167.51,15.9524]
[1730833475520,0.3076131,167.59,167.55,10.96380229]
[1730833476249,0.3076131,167.59,167.55,16.93200229]
[1730833476416,0.3076131,167.59,167.56,10.96380229]
[1730833476928,0.3076131,167.59,167.57,10.96380229]
[1730833477136,0.3076131,167.59,167.58,10.96380229]
[1730833477646,0.3076131,167.59,167.57,10.96380229]
[1730833478155,0.3076131,167.59,167.57,16.93120229]
[1730833479561,0.3076131,167.59,167.58,10.96380229]
[1730833479747,0.3076131,167.59,167.57,31.85030229]
[1730833480831,0.3076131,167.59,167.57,14.9191]
[1730833481981,0.3076131,167.59,167.56,16.93180229]
[1730833482464,0.3076131,167.59,167.57,10.96380229]
[1730833485341,0.3076131,167.59,167.57,16.93140229]
[1730833487666,0.3076131,167.59,167.57,31.85050229]
[1730833489673,0.3076131,167.59,167.58,10.96380229]
[1730833490464,0.3076131,167.59,167.57,10.96380229]
[1730833490977,0.3076131,167.59,167.58,10.96380229]
[1730833491147,0.3076131,167.59,167.56,10.96380229]
[1730833491347,0.3076131,167.59,167.58,10.96380229]
[1730833492165,0.3076131,167.59,167.57,10.96380229]
[1730833492356,0.3076131,167.59,167.58,10.96380229]
[1730833493064,0.3076131,167.59,167.58,16.93100229]
[1730833495378,0.3076131,167.59,167.58,5.9672]
[1730833497174,0.3076131,167.59,167.58,10.96380229]
[1730833497479,0.3076131,167.59,167.56,25.88290229]
[1730833497651,0.3076131,167.59,167.56,14.9191]
[1730833498062,0.3076131,167.59,167.57,10.96380229]
[1730833499071,0.3076131,167.59,167.57,16.93120229]
[1730833499275,0.3076131,167.59,167.58,10.96380229]
[1730833499772,0.3076131,167.59,167.57,31.85030229]
[1730833500981,0.3076131,167.59,167.55,31.85300229]
[1730833501183,17.23831539,167.59,167.53,5.9688]
[1730833501492,17.23831539,167.59,167.53,31.85530229]
[1730833501493,10.96380229,167.58,167.53,31.85530229]
[1730833501658,17.23831539,167.59,167.54,10.96380229]
[1730833502453,10.96380229,167.57,167.53,14.9227]
[1730833502661,10.96380229,167.58,167.53,14.9227]
[1730833503177,5.9676,167.57,167.53,14.9227]
[1730833503378,10.96380229,167.55,167.5,25.88890229]
[1730833504058,5.9676,167.57,167.52,10.96380229]
[1730833504500,5.9676,167.57,167.52,16.93320229]
[1730833505353,16.93140229,167.57,167.52,16.93320229]
[1730833506061,16.93140229,167.57,167.51,10.96380229]
[1730833506481,10.96380229,167.55,167.5,25.88890229]
[1730833506688,5.9676,167.57,167.5,25.88890229]
[1730833506689,10.96380229,167.56,167.5,25.88890229]
[1730833507461,16.93180229,167.56,167.5,31.85900229]
[1730833508068,16.93180229,167.56,167.51,10.96380229]
[1730833508576,5.968,167.56,167.51,16.93330229]
[1730833509881,10.96380229,167.55,167.5,25.88890229]
[1730833510093,10.96380229,167.55,167.49,16.93430229]
[1730833510274,10.96380229,167.54,167.49,16.93430229]
[1730833510456,10.96380229,167.54,167.49,10.96380229]
[1730833510789,10.96380229,167.55,167.49,10.96380229]
[1730833511482,16.93220229,167.55,167.49,16.93400229]
[1730833513181,16.93220229,167.55,167.49,31.86020229]
[1730833513569,10.96380229,167.54,167.49,31.86020229]
[1730833513882,66.32819666,167.55,167.49,31.86050229]
[1730833514290,66.32819666,167.55,167.5,10.96380229]
[1730833514579,66.32819666,167.55,167.49,31.86050229]
[1730833515381,10.96380229,167.54,167.49,14.9262]
[1730833516586,10.96380229,167.53,167.47,16.93490229]
[1730833516886,10.96380229,167.51,167.47,5.9711]
[1730833517890,10.96380229,167.52,167.47,16.93490229]
[1730833519394,16.93320229,167.52,167.47,16.93490229]
[1730833519892,10.96380229,167.49,167.45,5.9718]
[1730833520108,10.96380229,167.48,167.43,30.7279]
[1730833520268,10.96380229,167.48,167.43,47.66430229]
[1730833520669,10.96380229,167.5,167.44,10.96380229]
[1730833520890,10.96380229,167.5,167.45,10.96380229]
[1730833521189,10.96380229,167.51,167.46,10.96380229]
[1730833521393,10.96380229,167.5,167.44,16.93570229]
[1730833521692,10.96380229,167.5,167.44,31.86640229]
[1730833522015,10.96380229,167.5,167.45,10.96380229]
[1730833522191,5.9694,167.52,167.46,10.96380229]
[1730833522490,10.96380229,167.5,167.45,10.96380229]
[1730833522990,10.96380229,167.49,167.45,5.9718]
[1730833523774,16.93400229,167.5,167.45,16.93560229]
[1730833524981,10.96380229,167.5,167.45,31.86540229]
[1730833525495,49.39599437,167.53,167.49,10.96380229]
[1730833525800,6.1542,167.56,167.46,10.96380229]
[1730833525801,10.96380229,167.52,167.46,10.96380229]
[1730833526005,10.96380229,167.5,167.45,61.72500229]
[1730833526304,10.96380229,167.49,167.44,5.9722]
[1730833526671,10.96380229,167.49,167.41,44.7979]
[1730833526868,10.96380229,167.49,167.43,10.96380229]
[1730833527599,10.96380229,167.49,167.44,10.96380229]
[1730833527785,10.96380229,167.49,167.44,16.93590229]
[1730833528707,10.96380229,167.47,167.42,5.973]
[1730833528915,49.39599437,167.48,167.42,5.973]
[1730833528916,10.96380229,167.46,167.42,5.973]
[1730833529276,10.96380229,167.47,167.42,5.973]
[1730833529678,10.96380229,167.46,167.41,20.9059]
[1730833529879,10.96380229,167.46,167.41,14.9326]
[1730833530090,10.96380229,167.45,167.39,27.75591701]
[1730833530305,10.96380229,167.44,167.39,32.69260229]
[1730833530889,10.96380229,167.45,167.39,47.62770229]